bitfinex-derivatives/quotes_ETHF0:USTF0_20250430
["timestamp","ask_amount","ask_price","bid_price","bid_amount"]
[1746039618126,1.12076,1784.4,1784.3,7.98059]
[1746039618330,4.44456,1784.4,1784.3,7.98059]
[1746039618826,4.44456,1784.4,1784.3,9.57839]
[1746039619230,7.1518,1784.4,1784.3,9.57839]
[1746039619727,8.27256,1784.4,1784.3,4.8056]
[1746039620030,8.27256,1784.4,1784.3,3.2078]
[1746039621329,1.12083,1784.3,1784.2,4.35918]
[1746039621530,2.85833,1784.3,1784.2,4.35918]
[1746039622235,6.68633,1784.3,1784.2,4.35918]
[1746039625436,3.828,1784.3,1784.2,4.35918]
[1746039625731,4.94883,1784.3,1784.2,4.35918]
[1746039626335,1.12108,1784.0,1783.9,1.12104]
[1746039626633,1.12108,1784.0,1783.9,2.70574]
[1746039626829,1.12108,1783.9,1783.8,1.6714]
[1746039627036,1.12114,1783.8,1783.7,1.12119]
[1746039627233,1.12114,1783.8,1783.7,2.70589]
[1746039627435,0.8099,1783.9,1783.6,6.00041]
[1746039627436,1.1212,1783.7,1783.6,6.00041]
[1746039627729,1.12114,1783.8,1783.7,1.12116]
[1746039627937,2.462,1783.9,1783.8,1.12114]
[1746039628137,4.94914,1783.8,1783.7,2.80076]
[1746039628341,6.68914,1783.8,1783.7,2.80076]
[1746039628741,5.568,1783.8,1783.7,2.80076]
[1746039629646,3.828,1783.8,1783.7,2.80076]
[1746039630246,1.93595,1784.0,1783.9,1.12108]
[1746039630639,1.93595,1784.0,1783.9,2.83188]
[1746039630946,3.59775,1784.0,1783.9,2.83188]
[1746039631148,7.42575,1784.0,1783.9,2.83188]
[1746039632948,7.42575,1784.0,1783.9,1.12108]
[1746039634855,1.12108,1783.9,1783.8,2.80073]
[1746039635152,6.64508,1783.9,1783.8,2.80073]
[1746039635951,1.12114,1783.8,1783.7,1.636]
[1746039636145,2.81714,1783.8,1783.7,4.3743]
[1746039636344,3.62064,1783.8,1783.7,2.7383]
[1746039637146,7.44864,1783.8,1783.7,2.7383]
[1746039637343,3.828,1783.8,1783.7,2.7383]
[1746039638248,1.12108,1783.9,1783.8,1.12114]
[1746039638448,1.12108,1783.9,1783.8,4.53164]
[1746039639452,8.27627,1784.0,1783.9,1.12108]
[1746039639753,6.61467,1784.0,1783.9,1.12108]
[1746039639953,6.61467,1784.0,1783.9,2.80818]
[1746039640447,5.4936,1784.0,1783.9,2.80818]
[1746039640753,6.61462,1784.0,1783.9,2.80818]
[1746039640951,5.4936,1784.0,1783.9,2.80818]
[1746039641151,4.32876,1784.1,1784.0,1.12102]
[1746039641453,4.32875,1784.1,1784.0,2.80812]
[1746039641751,3.2078,1784.1,1784.0,2.80812]
[1746039641953,4.32875,1784.1,1784.0,2.80812]
[1746039642146,8.15675,1784.1,1784.0,2.80812]
[1746039642345,7.0358,1784.1,1784.0,2.80812]
[1746039643255,3.828,1784.1,1784.0,2.80812]
[1746039643654,3.828,1784.1,1784.0,6.01592]
[1746039644158,2.84062083,1784.4,1784.3,1.12083]
[1746039645154,6.66862083,1784.4,1784.3,1.12083]
[1746039646858,5.54781083,1784.4,1784.3,1.12083]
[1746039649653,3.83161083,1784.4,1784.3,1.12083]
[1746039650161,0.00361083,1784.4,1784.3,1.12083]
[1746039650364,0.00361083,1784.4,1784.3,2.81073]
[1746039656470,0.00361083,1784.4,1784.3,6.63873]
[1746039656663,0.00361083,1784.4,1784.3,9.84653]
[1746039657272,0.00361083,1784.4,1784.3,9.66653]
[1746039657471,0.00361083,1784.4,1784.3,6.45873]
[1746039657668,0.00361083,1784.4,1784.3,9.66653]
[1746039660275,3.83161083,1784.4,1784.3,9.66653]
[1746039661279,0.00361083,1784.4,1784.3,9.66653]
[1746039665283,0.00361083,1784.4,1784.3,13.49453]
[1746039666286,0.00361083,1784.4,1784.3,9.66653]
[1746039666985,0.00361083,1784.4,1784.3,6.01853]
[1746039667390,0.00361083,1784.4,1784.3,9.66653]
[1746039667589,0.00361083,1784.4,1784.3,6.01853]
[1746039667787,0.00361083,1784.4,1784.3,9.66653]
[1746039668189,0.8665,1784.8,1784.7,1.12058]
[1746039668389,2.5382,1784.9,1784.8,1.12051]
[1746039668692,2.5382,1784.9,1784.8,42.74351]
[1746039668895,2.5382,1784.9,1784.8,44.40131]
[1746039669388,0.8665,1785.0,1784.9,1.12045]
[1746039669596,0.8665,1785.0,1784.9,5.98605]
[1746039670084,2.5435,1785.0,1784.9,5.98605]
[1746039670288,6.3715,1785.0,1784.9,5.98605]
[1746039675889,3.828,1785.0,1784.9,9.63005]
[1746039676286,3.4151,1785.3,1785.2,1.12026]
[1746039676486,3.4151,1785.3,1785.2,4.32806]
[1746039676688,3.4151,1785.3,1785.2,45.12806]
[1746039677289,3.4151,1785.3,1785.2,46.71076]
[1746039677290,2.5042,1785.3,1785.2,46.71076]
[1746039677497,3.4147,1785.6,1785.5,1.12007]
[1746039677689,1.11981,1786.0,1785.9,1.1198]
[1746039677891,4.53444,1786.1,1786.0,1.11976]
[1746039678196,1.11979,1786.0,1785.9,1.11978]
[1746039678388,2.87259,1786.0,1785.9,1.11978]
[1746039678996,1.11985,1785.9,1785.8,1.11984]
[1746039679190,2.87265,1785.9,1785.8,1.11984]
[1746039679391,1.7528,1785.9,1785.8,1.11984]
[1746039679595,2.87262,1785.9,1785.8,1.11984]
[1746039680196,6.70062,1785.9,1785.8,1.11984]
[1746039680495,5.5808,1785.9,1785.8,1.11984]
[1746039680897,6.70062,1785.9,1785.8,1.11984]
[1746039682400,5.5808,1785.9,1785.5,3.2078]
[1746039682601,1.12001,1785.7,1785.6,1.11999]
[1746039682794,3.51814,1785.8,1785.7,1.11995]
[1746039682994,1.92234,1785.8,1785.7,1.11995]
[1746039683296,5.75034,1785.8,1785.7,1.11995]
[1746039685999,8.95814,1785.8,1785.7,1.11995]
[1746039686205,5.75029,1785.8,1785.7,1.11995]
[1746039688906,4.6304,1785.8,1785.7,1.11995]
[1746039689105,5.75029,1785.8,1785.7,1.11995]
[1746039689909,4.6304,1785.8,1785.7,1.11995]
[1746039690101,4.6304,1785.8,1785.7,1.95425]
[1746039690502,4.6304,1785.8,1785.7,3.58465]
[1746039691308,1.12001,1785.7,1785.6,1.11995]
[1746039691510,5.75034,1785.8,1785.7,1.11995]
[1746039697010,6.61294,1785.8,1785.7,1.11995]
[1746039698610,8.20104,1785.8,1785.7,1.11995]
[1746039699609,1.11995,1785.7,1785.6,1.11998]
[1746039699912,2.70805,1785.7,1785.6,1.11998]
[1746039700113,5.4161,1785.7,1785.6,1.11998]
[1746039700511,6.53605,1785.7,1785.6,2.86438]
[1746039700713,5.4161,1785.7,1785.6,2.86438]
[1746039702117,6.53605,1785.7,1785.6,2.86438]
[1746039702314,5.4161,1785.7,1785.6,2.86438]
[1746039705022,3.828,1785.7,1785.6,2.86438]
[1746039706320,4.94795,1785.7,1785.6,2.86438]
[1746039706522,6.66635,1785.7,1785.6,2.86438]
[1746039707520,5.5464,1785.7,1785.6,2.86438]
[1746039707724,6.66635,1785.7,1785.6,2.86438]
[1746039708323,5.5464,1785.7,1785.6,2.86438]
[1746039708728,6.66635,1785.7,1785.6,2.86438]
[1746039709826,5.5464,1785.7,1785.6,2.86438]
[1746039711624,6.66635,1785.7,1785.6,2.86438]
[1746039712732,6.66635,1785.7,1785.6,1.11998]
[1746039713023,1.12007,1785.6,1785.5,1.12002]
[1746039713224,2.85537,1785.6,1785.5,1.12002]
[1746039714229,6.68337,1785.6,1785.5,1.12002]
[1746039716426,2.80019,1785.5,1785.1,6.86989]
[1746039716624,1.12025,1785.3,1785.2,1.1202]
[1746039716823,1.12026,1785.2,1785.1,6.0347]
[1746039717023,1.93186,1785.2,1785.1,6.0347]
[1746039717222,5.75986,1785.2,1785.1,6.0347]
[1746039717423,6.55446,1785.2,1785.1,6.0347]
[1746039719135,6.55446,1785.2,1785.1,2.8269]
[1746039719532,5.4342,1785.2,1785.1,2.8269]
[1746039719732,6.55446,1785.2,1785.1,2.8269]
[1746039720735,5.4342,1785.2,1785.1,2.8269]
[1746039720936,6.55446,1785.2,1785.1,2.8269]
[1746039721432,6.55446,1785.2,1784.8,1.12046]
[1746039721433,1.12051,1784.9,1784.8,1.12046]
[1746039721624,2.83429,1785.1,1785.0,1.12039]
[1746039721825,1.7139,1785.1,1785.0,1.12039]
[1746039722025,2.83422,1785.1,1785.0,1.12039]
[1746039722223,6.66222,1785.1,1785.0,1.12039]
[1746039723028,1.12051,1784.8,1784.7,1.6476]
[1746039723335,1.12064,1784.6,1784.5,2.4541]
[1746039723529,1.12064,1784.6,1784.5,1.6462]
[1746039723836,1.12064,1784.6,1784.5,1.1207]
[1746039724136,5.4511,1784.6,1784.5,1.1207]
[1746039724627,3.828,1784.6,1784.5,1.1207]
[1746039724831,3.828,1784.6,1784.5,2.7669]
[1746039727132,4.94864,1784.6,1784.5,2.7669]
[1746039727633,7.41564,1784.6,1784.5,2.7669]
[1746039729935,7.41564,1784.6,1784.5,1.6462]
[1746039730237,7.41564,1784.6,1784.5,2.7669]
[1746039732638,1.12083,1784.3,1784.2,1.12085]
[1746039732837,1.12083,1784.3,1784.2,2.86715]
[1746039733248,4.94883,1784.3,1784.2,2.86715]
[1746039733437,7.43253,1784.3,1784.2,1.7463]
[1746039733641,7.43257,1784.3,1784.2,1.12089]
[1746039734342,3.828,1784.3,1784.2,6.07499]
[1746039734643,3.828,1784.3,1784.2,2.86719]
[1746039734843,4.94883,1784.3,1784.2,2.86719]
[1746039735542,6.58643,1784.3,1784.2,2.86719]
[1746039736441,6.58643,1784.3,1784.2,1.7463]
[1746039737145,6.58643,1784.3,1784.2,2.86719]
[1746039738342,3.828,1784.3,1784.2,2.86719]
[1746039738543,4.94883,1784.3,1784.2,2.86719]
[1746039739547,3.828,1784.3,1784.2,2.86719]
[1746039741933,3.828,1784.3,1784.2,6.07499]
[1746039742140,1.12064,1784.6,1784.5,1.1207]
[1746039742942,1.6252,1784.9,1784.6,1.12064]
[1746039743252,8.24808,1784.9,1784.8,1.12051]
[1746039743636,7.1276,1784.9,1784.8,3.58081]
[1746039743842,3.828,1784.9,1784.8,3.58081]
[1746039744042,4.94845,1784.9,1784.8,3.58081]
[1746039748052,3.828,1784.9,1784.8,3.58081]
[1746039748451,4.94845,1784.9,1784.8,3.58081]
[1746039750243,3.828,1784.9,1784.8,3.58081]
[1746039751954,4.94845,1784.9,1784.8,3.58081]
[1746039752351,3.828,1784.9,1784.8,3.58081]
[1746039752548,4.94845,1784.9,1784.8,3.58081]
[1746039752748,3.828,1784.9,1784.8,3.58081]
[1746039753761,3.828,1784.9,1784.8,2.4603]
[1746039753959,5.579,1784.9,1784.8,3.58081]
[1746039757460,6.69945,1784.9,1784.8,3.58081]
[1746039757657,5.579,1784.9,1784.8,3.58081]
[1746039757961,5.579,1784.9,1784.8,2.72851]
[1746039757962,6.69945,1784.9,1784.8,2.72851]
[1746039758155,5.579,1784.9,1784.8,2.72851]
[1746039759760,6.69945,1784.9,1784.8,2.72851]
[1746039759970,5.579,1784.9,1784.8,2.72851]
[1746039760265,11.58794,1784.9,1784.6,0.8382]
[1746039760467,4.51217,1784.8,1784.7,1.12058]
[1746039761364,8.34017,1784.8,1784.7,1.12058]
[1746039761555,8.34017,1784.8,1784.7,2.87438]
[1746039761556,8.34011,1784.8,1784.7,2.87438]
[1746039761755,7.2196,1784.8,1784.7,2.87438]
[1746039761952,7.2196,1784.8,1784.7,3.74078]
[1746039763669,3.828,1784.8,1784.7,3.74078]
[1746039764069,3.828,1784.8,1784.7,6.94858]
[1746039764370,4.94839,1785.0,1784.9,1.12045]
[1746039765065,6.54039,1785.0,1784.9,1.12045]
[1746039765471,1.12045,1784.9,1784.8,2.7364]
[1746039765666,2.79815,1784.9,1784.8,2.7364]
[1746039765973,2.79815,1784.9,1784.8,1.1205]
[1746039766167,6.62615,1784.9,1784.8,1.1205]
[1746039769077,6.62615,1784.9,1784.8,2.7168]
[1746039770176,3.828,1784.9,1784.8,2.7168]
[1746039770377,4.94845,1784.9,1784.8,3.5316]
[1746039770875,3.828,1784.9,1784.8,3.5316]
[1746039773582,4.94845,1784.9,1784.8,3.5316]
[1746039773979,3.828,1784.9,1784.8,3.5316]
[1746039774481,3.828,1784.9,1784.8,8.5316]
[1746039774676,2.53476,1784.9,1784.8,8.5316]
[1746039774978,0.8321,1785.6,1785.5,1.12007]
[1746039775182,1.95211,1785.6,1785.5,41.92007]
[1746039775385,11.14882726,1785.7,1785.6,1.12001]
[1746039775682,11.14882726,1785.7,1785.6,2.80811]
[1746039776079,11.14882726,1785.7,1785.6,3.25657938]
[1746039776382,11.14882726,1785.7,1785.6,8.25657938]
[1746039777783,1.7455,1786.0,1785.9,1.11982]
[1746039778176,6.69326,1786.0,1785.9,1.11982]
[1746039779192,1.11982,1785.9,1785.7,3.2078]
[1746039779498,2.6142,1785.8,1785.7,1.11991]
[1746039779693,3.73409,1785.8,1785.7,2.82961]
[1746039780093,7.56209,1785.8,1785.7,2.82961]
[1746039780293,6.4422,1785.8,1785.7,2.82961]
[1746039780602,7.56209,1785.8,1785.7,2.82961]
[1746039780791,6.4422,1785.8,1785.7,2.82961]
[1746039784500,7.56209,1785.8,1785.7,2.82961]
[1746039784903,1.11998,1785.7,1785.6,1.11996]
[1746039785094,6.61848,1785.7,1785.6,1.11996]
[1746039785494,5.4985,1785.7,1785.6,1.11996]
[1746039785896,5.4985,1785.7,1785.6,2.81886]
[1746039786402,3.828,1785.7,1785.6,2.81886]
[1746039786704,3.828,1785.7,1785.6,6.02666]
[1746039786905,3.828,1785.7,1785.6,11.02666]
[1746039787099,1.6186,1786.0,1785.9,1.11982]
[1746039787897,1.11982,1785.9,1785.8,1.95433]
[1746039788093,6.56639,1786.0,1785.9,1.11982]
[1746039789306,5.4466,1786.0,1785.9,1.11982]
[1746039789507,6.56636,1786.0,1785.9,1.11982]
[1746039789710,5.4466,1786.0,1785.9,1.11982]
[1746039790003,5.4466,1786.0,1785.9,2.75402]
[1746039790210,3.828,1786.0,1785.9,3.60992]
[1746039791503,5.4783,1786.0,1785.9,3.60992]
[1746039791705,3.828,1786.0,1785.9,3.60992]
[1746039792303,0.8454,1786.3,1786.2,1.11963]
[1746039792702,3.64277,1786.3,1786.2,1.11963]
[1746039793102,7.47077,1786.3,1786.2,1.11963]
[1746039795105,6.3512,1786.3,1786.2,1.11963]
[1746039795306,7.47077,1786.3,1786.2,1.11963]
[1746039796009,6.3512,1786.3,1786.2,1.11963]
[1746039796207,7.47077,1786.3,1786.2,1.11963]
[1746039796602,6.3512,1786.3,1786.2,1.11963]
[1746039796913,7.47077,1786.3,1786.2,1.11963]
[1746039800605,1.1197,1786.1,1786.0,4.32755]
[1746039800817,1.1197,1786.1,1786.0,1.11975]
[1746039801218,6.6811,1786.1,1786.0,1.11975]
[1746039801718,7.4765,1786.1,1786.0,1.11975]
[1746039805022,1.11976,1786.0,1785.9,1.6229]
[1746039805225,1.11995,1785.7,1785.6,1.92936]
[1746039805416,1.11993,1785.8,1785.7,1.11989]
[1746039805621,3.71513,1785.8,1785.7,1.11989]
[1746039805823,2.5952,1785.8,1785.7,1.11989]
[1746039806021,3.71509,1785.8,1785.7,2.77579]
[1746039806216,7.54309,1785.8,1785.7,2.77579]
[1746039808127,9.22307,1785.8,1785.5,42.78136]
[1746039808424,3.6007,1785.7,1785.6,1.12001]
[1746039809026,2.4807,1785.7,1785.6,1.12001]
[1746039809330,7.42865,1785.7,1785.6,2.83481]
[1746039810523,1.12001,1785.6,1785.5,41.6613]
[1746039810820,1.12001,1785.6,1785.2,1.96595]
[1746039810821,1.1202,1785.3,1785.2,1.96595]
[1746039811223,4.9482,1785.3,1785.2,1.96595]
[1746039811429,4.9482,1785.3,1785.2,3.56815]
[1746039812325,4.9482,1785.3,1785.2,1.12025]
[1746039812524,1.12032,1785.1,1785.0,2.80216]
[1746039812721,8.37574,1785.3,1785.1,1.12032]
[1746039812722,2.6078,1785.2,1785.1,1.12032]
[1746039813026,3.72812,1785.2,1785.1,1.12032]
[1746039813227,7.55612,1785.2,1785.1,1.12032]
[1746039813427,7.55612,1785.2,1785.1,2.72252]
[1746039813820,3.828,1785.2,1785.1,2.72252]
[1746039814022,4.94826,1785.2,1785.1,2.72252]
[1746039816531,3.828,1785.2,1785.1,2.72252]
[1746039816829,4.94826,1785.2,1785.1,2.72252]
[1746039817132,3.828,1785.2,1785.1,2.72252]
[1746039817330,4.94826,1785.2,1785.1,2.72252]
[1746039817725,3.828,1785.2,1785.1,2.72252]
[1746039818225,4.94826,1785.2,1785.1,2.72252]
[1746039820135,3.828,1785.2,1785.1,2.72252]
[1746039820527,4.94826,1785.2,1785.1,2.72252]
[1746039821129,3.828,1785.2,1785.1,2.72252]
[1746039821336,4.94826,1785.2,1785.1,2.72252]
[1746039821537,3.828,1785.2,1785.1,2.72252]
[1746039822235,6.57274,1785.3,1785.2,1.12026]
[1746039822534,6.57274,1785.3,1785.2,2.83366]
[1746039823937,3.828,1785.3,1785.2,2.83366]
[1746039824141,3.828,1785.3,1785.2,6.04146]
[1746039824334,3.63,1785.7,1785.6,1.12001]
[1746039824533,4.32771,1785.8,1785.7,1.11995]
[1746039825234,8.15571,1785.8,1785.7,1.11995]
[1746039825536,4.94791,1785.8,1785.7,2.87145]
[1746039825834,3.828,1785.8,1785.7,2.87145]
[1746039826229,4.47844,1785.9,1785.8,1.11989]
[1746039826440,4.47844,1785.9,1785.8,2.77999]
[1746039827239,8.30644,1785.9,1785.8,2.77999]
[1746039829041,8.30644,1785.9,1785.8,1.6601]
[1746039829441,8.30644,1785.9,1785.8,2.77999]
[1746039832752,8.30644,1785.9,1785.8,1.11989]
[1746039838855,4.6612,1785.9,1785.8,1.11989]
[1746039839048,3.828,1785.9,1785.8,1.11989]
[1746039839450,3.828,1785.9,1785.8,2.73859]
[1746039840155,4.94782,1785.9,1785.8,2.73859]
[1746039841854,3.828,1785.9,1785.8,2.73859]
[1746039843258,6.06727,1786.0,1785.9,1.11982]
[1746039843862,6.06727,1786.0,1785.9,2.85552]
[1746039844162,9.89527,1786.0,1785.9,2.85552]
[1746039844563,5.5677,1786.0,1785.9,2.85552]
[1746039844761,6.68746,1786.0,1785.9,2.85552]
[1746039845365,5.5677,1786.0,1785.9,2.85552]
[1746039847356,6.68746,1786.0,1785.9,2.85552]
[1746039847557,5.5677,1786.0,1785.9,2.85552]
[1746039848461,6.68746,1786.0,1785.9,1.11982]
[1746039854575,1.11989,1785.8,1785.7,4.32773]
[1746039855179,8.36029,1785.8,1785.7,4.32773]
[1746039855667,8.36029,1785.8,1785.7,6.04153]
[1746039857380,7.2404,1785.8,1785.7,6.04153]
[1746039857770,8.36029,1785.8,1785.7,6.04153]
[1746039859874,8.36029,1785.8,1785.7,2.83373]
[1746039860582,3.828,1785.8,1785.7,2.83373]
[1746039861279,1.11985,1785.9,1785.8,1.11989]
[1746039862183,4.94785,1785.9,1785.8,2.74639]
[1746039862479,6.58845,1785.9,1785.8,2.74639]
[1746039863680,3.828,1785.9,1785.8,2.74639]
[1746039863977,3.828,1785.9,1785.8,10.95419]
[1746039864180,5.59319,1786.3,1786.2,1.11963]
[1746039864586,4.4736,1786.3,1786.2,1.11963]
[1746039864881,5.59317,1786.3,1786.2,1.11963]
[1746039865077,5.59317,1786.3,1786.2,1.97413]
[1746039865276,1.11963,1786.2,1786.1,2.81026]
[1746039865485,3.64893,1786.2,1786.1,2.81026]
[1746039866187,7.47693,1786.2,1786.1,1.11966]
[1746039866781,7.47693,1786.2,1786.1,2.79936]
[1746039867678,6.3573,1786.2,1786.1,2.79936]
[1746039867874,7.47693,1786.2,1786.1,2.79936]
[1746039868473,1.11991,1785.9,1785.8,1.11984]
[1746039868672,1.11993,1785.8,1785.7,1.11989]
[1746039868879,1.11993,1785.8,1785.7,2.79959]
[1746039869280,6.69643,1785.8,1785.7,2.79959]
[1746039869481,5.5765,1785.8,1785.7,2.79959]
[1746039869681,6.69639,1785.8,1785.7,2.79959]
[1746039870187,5.5765,1785.8,1785.7,2.79959]
[1746039870479,6.69639,1785.8,1785.7,2.79959]
[1746039870982,1.11995,1785.7,1785.6,1.11999]
[1746039871188,6.69645,1785.7,1785.6,1.11999]
[1746039871484,5.5765,1785.7,1785.6,1.11999]
[1746039871678,5.5765,1785.7,1785.6,2.82409]
[1746039872582,6.69645,1785.7,1785.6,2.82409]
[1746039872987,5.5765,1785.7,1785.6,2.82409]
[1746039874590,3.828,1785.7,1785.6,2.82409]
[1746039881992,4.94795,1785.7,1785.6,2.82409]
[1746039882193,3.828,1785.7,1785.6,2.82409]
[1746039883096,1.12024,1785.3,1785.2,1.1202]
[1746039883782,2.85278,1785.4,1785.3,1.1202]
[1746039884180,5.5606,1785.4,1785.3,1.1202]
[1746039884583,3.828,1785.4,1785.3,1.1202]
[1746039884793,3.828,1785.4,1785.3,2.7342]
[1746039885294,6.58934,1785.4,1785.3,2.7342]
[1746039885889,6.58934,1785.4,1785.3,1.1202]
[1746039887095,1.1202,1785.3,1785.2,1.61]
[1746039887394,3.5837,1785.3,1785.2,1.1202]
[1746039888191,7.4117,1785.3,1785.2,1.1202]
[1746039896703,10.6195,1785.3,1785.2,1.1202]
[1746039896901,11.4339,1785.3,1785.2,1.1202]
[1746039898312,8.2261,1785.3,1785.2,2.8661]
[1746039898601,7.1059,1785.3,1785.2,2.8661]
[1746039898803,8.2261,1785.3,1785.2,2.8661]
[1746039900403,8.2261,1785.3,1785.2,1.1202]
[1746039903705,8.2261,1785.3,1785.1,4.42112]
[1746039903706,1.12032,1785.2,1785.1,1.12026]
[1746039904005,2.79302,1785.2,1785.1,1.12026]
[1746039904206,6.62102,1785.2,1785.1,1.12026]
[1746039904899,6.62102,1785.2,1785.1,2.80496]
[1746039905098,5.5007,1785.2,1785.1,2.80496]
[1746039905298,3.828,1785.2,1785.1,6.01276]
[1746039905811,3.828,1785.2,1785.1,11.01276]
[1746039906103,2.79999,1785.7,1785.1,13.5145]
[1746039906292,1.1202,1785.4,1785.3,1.12012]
[1746039906690,1.6584,1785.4,1785.3,2.73762]
[1746039907097,5.4864,1785.4,1785.3,2.73762]
[1746039907303,6.60654,1785.4,1785.3,2.73762]
[1746039907605,5.4864,1785.4,1785.3,2.73762]
[1746039907903,3.828,1785.4,1785.3,2.73762]
[1746039908404,1.12014,1785.5,1785.4,1.12009]
[1746039908603,2.77854,1785.5,1785.4,1.12009]
[1746039909305,6.60654,1785.5,1785.4,1.12009]
[1746039909498,1.12014,1785.4,1785.3,2.73765]
[1746039909693,2.71284,1785.4,1785.3,2.73765]
[1746039910103,6.54084,1785.4,1785.3,1.12015]
[1746039910697,3.828,1785.4,1785.3,1.12015]
[1746039910898,3.828,1785.4,1785.3,11.01285]
[1746039911097,0.93548,1785.4,1785.3,14.63485]
[1746039911299,2.71241,1786.1,1785.9,1.11982]
[1746039911601,1.5927,1786.1,1786.0,2.80466]
[1746039911898,3.622,1786.3,1786.2,1.11963]
[1746039912103,4.74157,1786.3,1786.2,1.11963]
[1746039912493,1.11957,1786.3,1786.2,1.11963]
[1746039912707,6.8298,1786.5,1786.2,1.6607]
[1746039912899,1.11953,1786.4,1786.3,1.11951]
[1746039913099,2.85563,1786.4,1786.3,1.11951]
[1746039913306,8.15528,1786.5,1786.4,1.11951]
[1746039913502,7.0358,1786.5,1786.4,1.11951]
[1746039913702,3.828,1786.5,1786.4,1.11951]
[1746039914101,3.828,1786.5,1786.4,3.63071]
[1746039914403,13.08797362,1786.6,1786.5,1.11945]
[1746039914600,13.08797362,1786.6,1786.5,9.60895]
[1746039914801,1.11912,1787.1,1786.9,1.11916]
[1746039915101,4.94712,1787.1,1787.0,1.6168]
[1746039915306,5.4978,1787.1,1787.0,2.73593]
[1746039915606,3.828,1787.1,1787.0,2.73593]
[1746039918208,3.2078,1787.4,1787.1,1.11907]
[1746039918502,3.2078,1787.4,1787.3,1.11895]
[1746039918708,6.1051,1787.6,1787.2,1.6178]
[1746039918910,1.7399,1787.4,1787.2,2.73681]
[1746039919110,5.5679,1787.4,1787.2,2.73681]
[1746039919404,5.5679,1787.4,1787.3,1.11895]
[1746039919602,3.828,1787.4,1787.3,1.11895]
[1746039920507,1.11868,1787.8,1787.7,1.1187]
[1746039920824,1.1187,1787.7,1787.6,1.11871]
[1746039921208,3.828,1787.7,1787.6,1.11871]
[1746039923610,3.828,1787.7,1787.6,1.93691]
[1746039924012,3.828,1787.7,1787.6,1.11871]
[1746039925306,5.4085,1787.7,1787.6,1.11871]
[1746039925510,5.4085,1787.7,1787.5,4.8256]
[1746039925814,1.11876,1787.6,1787.5,2.73662]
[1746039926014,2.69926,1787.6,1787.5,2.73662]
[1746039926214,6.52726,1787.6,1787.5,2.73662]
[1746039927012,6.52726,1787.6,1787.3,12.6528]
[1746039927013,1.11887,1787.5,1787.4,1.11885]
[1746039927212,2.73497,1787.5,1787.4,40.8]
[1746039927518,1.11901,1787.2,1787.1,3.2078]
[1746039927815,1.11903,1787.3,1787.2,1.11896]
[1746039928330,6.56313,1787.3,1787.2,1.11896]
[1746039928813,5.4441,1787.3,1787.0,1.6755]
[1746039929115,1.11907,1787.1,1787.0,1.11909]
[1746039929313,1.11913,1787.0,1786.9,2.79466]
[1746039929516,1.11913,1787.0,1786.9,1.6755]
[1746039929709,2.73522,1787.1,1787.0,1.11913]
[1746039930114,6.56322,1787.1,1787.0,1.11913]
[1746039930622,1.11913,1787.0,1786.9,2.79465]
[1746039930920,2.80443,1787.0,1786.9,1.6755]
[1746039931221,1.1192,1786.9,1786.7,44.415]
[1746039931412,2.8045,1786.9,1786.8,1.6411]
[1746039931613,2.8045,1786.9,1786.8,2.76036]
[1746039932119,6.6325,1786.9,1786.8,2.76036]
[1746039933921,1.11932,1786.7,1786.6,5.18146]
[1746039934114,1.11932,1786.7,1786.6,3.2078]
[1746039934319,1.11932,1786.7,1786.4,5.83]
[1746039934320,1.11945,1786.6,1786.5,1.1194]
[1746039934526,2.69955,1786.6,1786.5,1.6067]
[1746039934724,2.69955,1786.6,1786.5,2.72615]
[1746039935022,1.11957,1786.3,1786.2,4.0538]
[1746039935223,1.11963,1786.2,1786.1,43.52634]
[1746039935528,1.11962,1786.3,1786.2,1.11959]
[1746039936221,4.94762,1786.3,1786.2,1.11959]
[1746039936521,3.828,1786.3,1786.2,1.11959]
[1746039936919,5.5703,1786.3,1786.2,1.11959]
[1746039937122,5.5703,1786.3,1786.2,2.81199]
[1746039937622,6.68987,1786.3,1786.2,2.81199]
[1746039937927,3.828,1786.3,1786.2,2.81199]
[1746039939129,1.11951,1786.4,1786.3,1.11957]
[1746039939328,2.73891,1786.4,1786.3,1.11957]
[1746039939826,3.2078,1786.5,1786.4,1.11951]
[1746039940022,5.94671,1786.5,1786.4,1.11951]
[1746039940223,9.77471,1786.5,1786.4,1.11951]
[1746039940631,1.11956,1786.4,1786.3,1.11952]
[1746039940927,1.11957,1786.3,1786.2,2.81199]
[1746039941128,3.60635,1786.4,1786.3,1.11957]
[1746039942115,7.43435,1786.4,1786.3,1.11957]
[1746039942315,1.11957,1786.3,1786.2,2.81199]
[1746039942521,2.83627,1786.3,1786.2,2.81199]
[1746039943218,6.66427,1786.3,1786.2,2.81199]
[1746039943422,3.828,1786.3,1786.2,2.81199]
[1746039943627,3.828,1786.3,1786.2,7.81199]
[1746039943818,3.828,1786.3,1786.2,9.45059]
[1746039944230,3.615,1786.6,1786.3,2.7988]
[1746039944525,6.45109,1786.6,1786.5,1.11945]
[1746039945226,10.27909,1786.6,1786.5,1.11945]
[1746039945423,9.1597,1786.6,1786.5,1.11945]
[1746039945624,3.828,1786.6,1786.5,1.11945]
[1746039946129,3.828,1786.6,1786.5,4.32725]